bitfinex-derivatives/quotes_BNBF0:USTF0_20251219
["timestamp","ask_amount","ask_price","bid_price","bid_amount"]
[1766116154304,0.206939,841.38,839.91,12.93498759]
[1766116160021,0.88852366,841.28,839.91,12.93498759]
[1766116160619,0.88852366,841.27,839.91,12.93498759]
[1766116161018,0.88852366,841.21,839.91,12.93498759]
[1766116165022,0.206939,841.38,839.91,12.93498759]
[1766116165023,0.88852366,841.23,839.91,12.93498759]
[1766116167125,0.88852366,841.22,839.91,12.93498759]
[1766116167921,0.88852366,841.22,839.33,0.85373837]
[1766116168228,0.88852366,841.15,839.27,0.85373837]
[1766116168427,0.88852366,841.16,839.28,0.85373837]
[1766116169228,0.88852366,841.15,839.3,0.85373837]
[1766116170229,0.88852366,841.14,839.31,0.85373837]
[1766116170535,0.88852366,841.2,839.37,0.85373837]
[1766116171129,0.88852366,841.19,839.39,0.85373837]
[1766116172229,0.88852366,841.18,839.41,0.85373837]
[1766116172526,0.88852366,841.21,839.44,0.85373837]
[1766116173129,0.88852366,841.23,839.48,0.85373837]
[1766116173531,0.88852366,841.31,839.56,0.85373837]
[1766116173731,0.88852366,841.31,839.55,0.85373837]
[1766116174031,0.88852366,841.31,839.56,0.85373837]
[1766116174232,0.206939,841.38,839.68,0.85373837]
[1766116174727,0.206939,841.38,839.69,0.85373837]
[1766116175130,0.206939,841.38,839.7,0.85373837]
[1766116176134,0.206939,841.38,839.72,0.85373837]
[1766116176335,0.206939,841.38,839.79,0.85373837]
[1766116177132,0.206939,841.38,839.81,0.85373837]
[1766116177737,0.206939,841.38,839.82,0.85373837]
[1766116178143,0.206939,841.38,839.83,0.85373837]
[1766116179050,0.206939,841.38,839.83,13.94007134]
[1766116179339,0.206939,841.38,839.92,0.85373837]
[1766116180145,0.206939,841.38,839.93,0.85373837]
[1766116181242,0.206939,841.38,839.94,0.85373837]
[1766116182145,0.206939,841.38,839.96,0.85373837]
[1766116183146,0.206939,841.38,839.98,0.85373837]
[1766116183947,0.206939,841.38,839.99,0.85373837]
[1766116184148,0.206939,841.38,839.98,0.85373837]
[1766116184347,0.206939,841.38,839.99,0.85373837]
[1766116185248,0.206939,841.38,840.0,0.85373837]
[1766116186147,0.206939,841.38,839.83,13.08633297]
[1766116186148,0.206939,841.38,840.01,0.85373837]
[1766116187444,0.206939,841.38,839.95,0.85373837]
[1766116187949,1.18038957,841.27,839.83,13.08633297]
[1766116188148,0.88852366,841.11,839.83,13.08633297]
[1766116188446,0.88852366,841.12,839.83,13.08633297]
[1766116189346,0.88852366,841.1,839.83,13.08633297]
[1766116191249,0.88852366,841.11,839.83,13.08633297]
[1766116192553,0.88852366,841.17,839.83,13.08633297]
[1766116194353,0.88852366,841.16,839.83,13.08633297]
[1766116194652,0.88852366,841.17,839.83,13.08633297]
[1766116197255,0.88852366,841.16,839.83,13.08633297]
[1766116197649,0.88852366,841.17,839.83,13.08633297]
[1766116197852,0.88852366,841.19,839.83,13.08633297]
[1766116198352,0.88852366,841.18,839.83,13.08633297]
[1766116198757,0.88852366,841.26,839.89,0.85373837]
[1766116201253,0.88852366,841.25,839.9,0.85373837]
[1766116201455,0.88852366,841.26,839.91,0.85373837]
[1766116201755,0.88852366,841.26,839.9,0.85373837]
[1766116202162,0.88852366,841.25,839.91,0.85373837]
[1766116203160,0.88852366,841.25,839.92,0.85373837]
[1766116204159,0.88852366,841.24,839.91,0.85373837]
[1766116205159,0.88852366,841.23,839.91,0.85373837]
[1766116206162,0.88852366,841.22,839.92,0.85373837]
[1766116206564,0.88852366,841.08,839.83,13.08633297]
[1766116206762,0.88852366,840.96,839.83,13.08633297]
[1766116207264,0.88852366,840.95,839.83,13.08633297]
[1766116208365,0.88852366,840.96,839.83,13.08633297]
[1766116209064,0.88852366,840.97,839.83,13.08633297]
[1766116209266,0.88852366,841.05,839.83,13.08633297]
[1766116210165,0.88852366,841.06,839.83,13.08633297]
[1766116210361,0.88852366,841.19,839.89,0.85373837]
[1766116210767,0.88852366,841.19,839.88,0.85373837]
[1766116211168,0.88852366,841.19,839.89,0.85373837]
[1766116211563,0.88852366,841.19,839.88,0.85373837]
[1766116212067,0.88852366,841.18,839.88,0.85373837]
[1766116213864,0.88852366,841.18,839.89,0.85373837]
[1766116214267,0.88852366,841.2,839.92,0.85373837]
[1766116214470,0.88852366,841.25,839.97,0.85373837]
[1766116214671,0.88852366,841.33,840.05,0.85373837]
[1766116215165,0.88852366,841.32,840.05,0.85373837]
[1766116215366,0.88852366,841.33,840.06,0.85373837]
[1766116215569,0.206939,841.38,840.14,0.85373837]
[1766116215766,0.206939,841.38,840.15,0.85373837]
[1766116217169,0.206939,841.38,840.14,0.85373837]
[1766116217363,0.206939,841.38,840.21,0.85373837]
[1766116218265,0.206939,841.38,840.2,0.85373837]
[1766116218866,0.206939,841.38,840.21,0.85373837]
[1766116219070,0.206939,841.38,840.22,0.85373837]
[1766116219266,0.206939,841.38,840.21,0.85373837]
[1766116219469,0.206939,841.38,840.22,0.85373837]
[1766116220266,0.206939,841.38,840.21,0.85373837]
[1766116221266,0.206939,841.38,840.27,0.85373837]
[1766116222966,0.206939,841.38,840.26,0.85373837]
[1766116223172,0.206939,841.38,840.23,0.85373837]
[1766116223369,0.206939,841.38,840.15,0.85373837]
[1766116224774,0.206939,841.38,840.13,0.85373837]
[1766116224972,0.206939,841.38,840.06,0.85373837]
[1766116225175,0.206939,841.38,839.93,0.85373837]
[1766116225375,0.88852366,841.29,839.92,0.85373837]
[1766116225874,2.06596425,841.28,839.91,0.85373837]
[1766116226075,0.88852366,841.2,839.84,0.85373837]
[1766116227176,0.88852366,841.19,839.85,0.85373837]
[1766116228772,0.88852366,841.15,839.83,13.08633297]
[1766116228975,0.88852366,841.05,839.83,13.08633297]
[1766116229171,0.88852366,841.04,839.83,13.08633297]
[1766116229876,0.88852366,841.01,839.83,13.08633297]
[1766116230175,0.88852366,840.79,839.83,13.08633297]
[1766116230375,0.88852366,840.79,839.47,0.85373837]
[1766116231373,0.88852366,840.8,839.46,0.85373837]
[1766116231578,0.88852366,840.8,839.47,0.85373837]
[1766116232178,0.88852366,840.69,839.32,0.85373837]
[1766116232478,0.88852366,840.64,839.27,0.85373837]
[1766116233273,0.88852366,840.66,839.25,0.85373837]
[1766116233474,0.88852366,840.66,838.95,1.70834529]
[1766116233475,0.88852366,840.7,839.29,0.85373837]
[1766116234076,0.88852366,840.71,839.29,0.85373837]
[1766116234276,0.88852366,840.72,839.27,0.85373837]
[1766116234575,0.88852366,840.72,839.27,13.73901592]
[1766116235381,0.88852366,840.74,839.27,12.88527755]
[1766116235781,0.88852366,840.73,839.27,12.88527755]
[1766116236177,0.88852366,840.75,839.27,12.88527755]
[1766116237282,0.88852366,840.76,839.27,12.88527755]
[1766116237684,0.88852366,840.7,839.27,12.88527755]
[1766116237878,0.88852366,840.61,839.27,12.88527755]
[1766116238282,0.88852366,840.63,839.27,12.88527755]
[1766116239180,0.88852366,840.65,839.27,12.88527755]
[1766116240081,0.88852366,840.64,839.27,12.88527755]
[1766116240281,0.88852366,840.66,839.27,12.88527755]
[1766116242181,0.88852366,840.67,839.27,12.88527755]
[1766116243386,0.88852366,840.68,839.27,12.88527755]
[1766116243582,0.88852366,840.65,839.27,12.88527755]
[1766116243984,0.88852366,840.53,839.27,12.88527755]
[1766116244482,0.88852366,840.54,838.77,0.85373837]
[1766116245286,0.88852366,840.56,838.75,0.85373837]
[1766116246282,0.88852366,840.57,838.74,0.85373837]
[1766116247286,0.88852366,840.58,838.72,0.85373837]
[1766116248281,0.88852366,840.59,838.7,0.85373837]
[1766116248888,0.88852366,840.63,838.74,0.85373837]
[1766116249387,0.88852366,840.65,838.73,0.85373837]
[1766116249584,0.88852366,840.68,838.76,0.85373837]
[1766116250187,0.88852366,840.69,838.75,0.85373837]
[1766116250384,0.88852366,840.75,838.8,0.85373837]
[1766116251490,0.88108458,840.75,838.79,0.86019548]
[1766116252087,0.88108458,840.76,838.79,0.86019548]
[1766116252287,0.88108458,840.76,838.78,0.86019548]
[1766116253290,0.88108458,840.89,838.9,0.86019548]
[1766116253486,0.88108458,840.9,838.91,0.86019548]
[1766116253890,0.88108458,840.92,838.94,0.86019548]
[1766116254190,0.88108458,840.93,838.93,0.86019548]
[1766116254387,0.88108458,840.92,838.93,0.86019548]
[1766116254590,0.88108458,840.92,838.92,0.86019548]
[1766116255795,0.88108458,840.91,838.92,0.86019548]
[1766116255996,0.88108458,840.87,838.87,0.86019548]
[1766116256196,0.88108458,840.85,838.84,0.86019548]
[1766116257694,0.88108458,840.87,838.85,0.86019548]
[1766116258300,9.05068184,841.28,838.9,0.86019548]
[1766116258301,0.88108458,840.92,838.9,0.86019548]
[1766116259199,0.88108458,840.93,838.91,0.86019548]
[1766116260907,0.88108458,841.02,839.0,0.86019548]
[1766116261102,0.88108458,841.05,839.03,0.86019548]
[1766116261399,0.88108458,841.05,839.04,0.86019548]
[1766116261698,0.88108458,841.04,839.03,0.86019548]
[1766116263099,0.88108458,841.04,839.04,0.86019548]
[1766116264302,0.88108458,841.04,839.05,0.86019548]
[1766116265805,0.88108458,841.08,839.1,0.86019548]
[1766116268003,0.88108458,841.03,839.06,0.86019548]
[1766116268206,0.88108458,841.0,839.02,0.86019548]
[1766116270404,0.88108458,841.0,838.73,12.89840128]
[1766116270405,0.88108458,841.0,839.03,0.86019548]
[1766116271308,0.88108458,841.0,839.04,0.86019548]
[1766116271708,0.88108458,841.0,839.03,0.86019548]
[1766116272210,0.88108458,840.99,839.04,0.86019548]
[1766116274111,0.88108458,840.96,839.01,0.86019548]
[1766116274311,0.88108458,840.93,839.0,0.86019548]
[1766116275209,0.88108458,840.93,839.01,0.86019548]
[1766116276310,0.88108458,840.91,839.03,0.86019548]
[1766116276709,1.17239923,840.9,839.03,0.86019548]
[1766116276906,0.88108458,840.86,838.97,0.86019548]
[1766116277109,2.05351637,840.85,838.97,0.86019548]
[1766116277310,0.88108458,840.82,838.97,0.86019548]
[1766116278213,0.88108458,840.8,838.99,0.86019548]
[1766116278614,0.88108458,840.84,839.02,0.86019548]
[1766116278915,0.88108458,840.9,839.09,0.86019548]
[1766116279413,0.88108458,840.94,839.18,0.86019548]
[1766116280215,0.8833758,840.92,839.2,0.86276229]
[1766116280411,0.8833758,840.92,839.21,0.86276229]
[1766116281109,0.8833758,840.89,839.21,0.86276229]
[1766116281314,0.8833758,840.89,839.24,0.86276229]
[1766116282214,0.8833758,840.86,839.29,0.86276229]
[1766116283314,0.8833758,840.82,839.33,0.86276229]
[1766116284218,0.8833758,840.78,839.37,0.86276229]
[1766116284817,0.8833758,840.9,839.49,0.86276229]
[1766116285014,0.8833758,840.91,839.51,0.86276229]
[1766116285214,0.20711204,840.47,839.56,0.86276229]
[1766116285517,0.8833758,841.0,839.64,0.86276229]
[1766116285718,0.20707383,840.61,839.64,0.86276229]
[1766116286122,0.20707383,840.61,839.66,0.86276229]
[1766116286416,0.20707383,840.61,839.67,0.86276229]
[1766116287113,0.20707383,840.61,839.69,0.86276229]
[1766116287915,0.20707383,840.61,839.75,0.86276229]
[1766116288219,0.8833758,841.1,839.8,0.86276229]
[1766116288416,0.20704981,840.67,839.8,0.86276229]
[1766116288719,0.8833758,841.1,839.8,0.86276229]
[1766116288918,0.20704119,840.67,839.8,0.86276229]
[1766116289416,0.8833758,841.16,839.84,0.86276229]
[1766116290319,0.8833758,841.18,839.83,0.86276229]
[1766116290516,0.20704242,840.84,839.83,0.86276229]
[1766116291317,0.20704242,840.84,839.82,0.86276229]
[1766116292321,0.20704242,840.84,839.8,0.86276229]
[1766116293422,0.20704242,840.84,839.79,0.86276229]
[1766116293921,0.20704242,840.84,838.95,0.01417918]
[1766116293922,0.20704242,840.84,839.71,0.86276229]
[1766116294218,0.20704242,840.84,839.63,0.86276229]
[1766116294920,0.20704242,840.84,839.56,0.86276229]
[1766116295224,0.20704242,840.84,839.61,0.86276229]
[1766116296225,0.20704242,840.84,839.59,0.86276229]
[1766116300226,0.20704242,840.84,839.6,0.86276229]
[1766116303929,0.20704242,840.84,839.59,0.86276229]
[1766116304227,0.20704242,840.84,839.6,0.86276229]
[1766116306232,0.20704242,840.84,839.61,0.86276229]
[1766116307227,0.20704242,840.84,839.62,0.86276229]
[1766116308133,0.20704242,840.84,839.63,0.86276229]
[1766116309330,0.20704242,840.84,839.64,0.86276229]
[1766116310334,0.20704242,840.84,839.65,0.86276229]
[1766116311229,0.20704242,840.84,839.66,0.86276229]
[1766116312735,0.20704242,840.84,839.51,0.86276229]
[1766116313133,0.8833758,840.75,839.39,0.86276229]
[1766116313337,0.8833758,840.74,839.39,0.86276229]
[1766116314235,0.8833758,840.74,839.4,0.86276229]
[1766116314434,0.8833758,840.72,839.38,0.86276229]
[1766116314840,0.8833758,840.67,839.33,0.86276229]
[1766116315737,0.8833758,840.58,839.24,0.86276229]
[1766116316142,0.8833758,840.41,839.07,0.86276229]
[1766116316343,0.8833758,840.42,839.07,0.86276229]
[1766116317343,0.8833758,840.42,839.06,0.86276229]
[1766116318338,0.8833758,840.43,839.05,0.86276229]
[1766116318541,0.8833758,840.44,839.06,0.86276229]
[1766116319141,0.8833758,840.45,839.06,0.86276229]
[1766116319340,0.8833758,840.45,839.05,0.86276229]
[1766116320444,0.8833758,840.49,839.1,0.86276229]
[1766116321148,0.8833758,840.5,839.1,0.86276229]
[1766116321349,0.8833758,840.54,839.13,0.86276229]
[1766116321553,0.8833758,840.53,839.12,0.86276229]
[1766116322349,1.99642662,840.84,839.12,0.86276229]
[1766116322350,0.8833758,840.54,839.12,0.86276229]
[1766116323352,0.8833758,840.55,839.11,0.86276229]
[1766116324048,0.8833758,840.52,839.08,0.86276229]
[1766116324251,0.8833758,840.53,839.07,0.86276229]
[1766116324452,0.8833758,840.54,839.08,0.86276229]
[1766116326157,0.8833758,840.54,839.07,0.86276229]
[1766116326357,0.8833758,840.55,839.07,0.86276229]
[1766116328158,0.8833758,840.46,838.97,0.86276229]
[1766116328359,0.20704242,840.84,838.85,0.86276229]
[1766116328360,0.8833758,840.35,838.85,0.86276229]
[1766116329360,1.18038957,840.5,838.23,0.0094585]
[1766116329361,0.8833758,840.36,838.83,0.86276229]
[1766116330260,1.17747304,840.35,838.82,0.86276229]
[1766116330455,0.8833758,840.28,838.72,0.86276229]
[1766116330657,0.8833758,840.17,838.62,0.86276229]
[1766116331355,0.8833758,840.2,838.59,0.86276229]
[1766116332156,0.8833758,840.2,838.58,0.86276229]
[1766116332358,0.8833758,840.22,838.56,0.86276229]
[1766116333263,0.8833758,840.22,838.53,0.86276229]
[1766116333863,0.8833758,840.23,838.53,0.86276229]
[1766116334259,0.8833758,840.23,838.23,1.71780379]
[1766116334260,0.8833758,840.25,838.51,0.86276229]
[1766116335460,0.8833758,840.26,838.49,0.86276229]
[1766116336264,0.8833758,840.28,838.47,0.86276229]
[1766116337261,0.8833758,840.29,838.45,0.86276229]
[1766116337566,0.8833758,840.38,838.53,0.86276229]
[1766116338265,0.8833758,840.39,838.52,0.86276229]
[1766116339266,0.8833758,840.43,838.55,0.86276229]
[1766116339467,0.8833758,840.49,838.6,0.86276229]
[1766116340365,0.8833758,840.49,838.3,1.70834529]
[1766116340366,0.8833758,840.49,838.59,0.86276229]
[1766116340767,1.7893842,840.79,838.23,0.0094585]
[1766116340768,0.8833758,840.5,838.6,0.86276229]
[1766116340967,0.8833758,840.58,838.68,0.86276229]
[1766116341369,0.8833758,840.58,838.67,0.86276229]
[1766116341670,0.8833758,840.69,838.78,0.86276229]
[1766116341965,0.8833758,840.75,838.84,0.86276229]
[1766116342169,0.8833758,840.76,838.84,0.86276229]
[1766116342369,1.09041822,840.84,838.93,0.86276229]
[1766116345170,0.20704242,840.84,838.93,0.86276229]
[1766116345465,1.09041822,840.84,838.93,0.86276229]
[1766116346269,1.09041822,840.84,838.94,0.86276229]
[1766116347368,0.8833758,840.83,838.94,0.86276229]
[1766116348473,0.8833758,840.83,838.95,0.86276229]
[1766116349367,0.8833758,840.82,838.96,0.86276229]
[1766116349973,0.8833758,840.7,838.84,0.86276229]
[1766116350173,0.8833758,840.69,838.84,0.86276229]
[1766116350473,0.8833758,840.69,838.85,0.86276229]
[1766116350667,0.8833758,840.7,838.85,0.86276229]
[1766116351072,0.8833758,840.69,838.85,0.86276229]
[1766116351274,0.8833758,840.68,838.86,0.86276229]
[1766116351673,0.8833758,840.69,838.86,0.86276229]
[1766116351869,0.8833758,840.69,838.87,0.86276229]
[1766116352471,0.8833758,840.68,838.88,0.86276229]
[1766116353176,0.8833758,840.68,838.89,0.86276229]
[1766116353376,0.8833758,840.67,838.9,0.86276229]
[1766116353671,0.8833758,840.71,838.93,0.86276229]
[1766116354372,0.8833758,840.7,838.94,0.86276229]
[1766116355275,0.8833758,840.69,838.95,0.86276229]
[1766116355796,0.20704242,840.84,839.31,0.86276229]
[1766116355977,0.20704242,840.84,839.3,0.86276229]
[1766116356473,0.20704242,840.84,839.31,0.86276229]
[1766116358277,0.20704242,840.84,839.32,0.86276229]
[1766116360379,0.20704242,840.84,839.25,0.86276229]
[1766116360776,0.20704242,840.84,839.24,0.86276229]
[1766116360980,0.20704242,840.84,839.19,0.86276229]
[1766116361177,0.20704242,840.84,839.16,0.86276229]
[1766116361376,0.20704242,840.84,839.17,0.86276229]
[1766116362380,0.20704242,840.84,839.18,0.86276229]
[1766116363178,0.20704242,840.84,839.19,0.86276229]
[1766116363482,1.09041822,840.84,839.19,0.86276229]
[1766116364383,1.09041822,840.84,839.2,0.86276229]
[1766116365183,0.8833758,840.83,839.21,0.86276229]
[1766116365885,0.8833758,840.77,839.16,0.86276229]
[1766116366281,0.8833758,840.77,839.17,0.86276229]
[1766116367288,0.8833758,840.76,839.18,0.86276229]
[1766116368186,0.8833758,840.75,839.19,0.86276229]
[1766116368582,0.8833758,840.74,839.19,0.86276229]
[1766116369183,0.8833758,840.73,839.2,0.86276229]
[1766116370284,0.20704242,840.84,839.22,0.86276229]
[1766116370285,0.8833758,840.72,839.22,0.86276229]
[1766116370489,0.8833758,840.72,839.22,14.07216042]
[1766116371287,0.8833758,840.72,839.24,0.86276229]
[1766116371484,0.8833758,840.81,839.33,0.86276229]
[1766116372189,0.8833758,840.8,839.34,0.86276229]
[1766116373784,0.20704242,840.84,839.42,0.86276229]
[1766116376390,0.20704242,840.84,839.22,13.20939813]
[1766116376391,0.20704242,840.84,839.39,0.86276229]
[1766116376890,0.8833758,840.82,839.34,0.86276229]
[1766116377891,0.8833758,840.75,839.26,0.86276229]
[1766116378187,2.06496803,840.74,839.26,0.86276229]
[1766116378391,2.06496803,840.74,839.22,13.20939813]
[1766116378392,0.8833758,840.67,839.22,13.20939813]
[1766116379892,0.8833758,840.66,839.22,13.20939813]
[1766116381290,0.8833758,840.67,839.22,13.20939813]
[1766116381495,0.8833758,840.66,839.22,13.20939813]
[1766116382392,0.8833758,840.67,839.22,13.20939813]
[1766116383193,0.8833758,840.66,839.22,13.20939813]
[1766116383397,0.8833758,840.67,839.22,13.20939813]
[1766116384295,0.8833758,840.63,839.22,13.20939813]
[1766116384894,0.8833758,840.67,839.22,13.20939813]
[1766116385897,0.8833758,840.66,839.22,13.20939813]
[1766116386095,0.8833758,840.62,839.22,13.20939813]
[1766116386696,0.8833758,840.57,839.22,13.20939813]
[1766116387101,0.8833758,840.56,839.22,13.20939813]
[1766116390399,0.8833758,840.55,839.22,13.20939813]
[1766116390703,0.8833758,840.56,839.22,13.20939813]
[1766116391203,0.8833758,840.55,839.22,13.20939813]
[1766116391404,0.8833758,840.54,839.22,13.20939813]
[1766116392300,0.8833758,840.53,839.22,13.20939813]
[1766116392804,0.8833758,840.56,839.22,13.20939813]
[1766116393205,0.8833758,840.54,839.22,13.20939813]
[1766116394309,0.8833758,840.53,839.22,13.20939813]
[1766116395208,0.8833758,840.52,839.22,13.20939813]
[1766116395504,0.8833758,840.51,839.22,13.20939813]
[1766116396208,0.8833758,840.49,839.22,13.20939813]
[1766116397306,0.8833758,840.47,839.23,0.86276229]
[1766116398206,0.8833758,840.47,839.24,0.86276229]
[1766116398408,0.8833758,840.45,839.25,0.86276229]
[1766116399212,0.8833758,840.43,839.27,0.86276229]
[1766116399811,0.8833758,840.41,839.24,0.86276229]
[1766116400310,0.8833758,840.29,839.22,13.20939813]
[1766116402711,0.8833758,840.37,839.22,14.07216042]
[1766116404217,0.8833758,840.38,839.22,14.07216042]
[1766116406519,0.20704242,840.84,839.22,14.07216042]
[1766116406520,0.8833758,840.32,839.22,13.20939813]
[1766116407320,0.8833758,840.33,839.22,13.20939813]
[1766116410220,0.8833758,840.34,839.22,13.20939813]
[1766116412921,0.8833758,840.27,839.22,13.20939813]
[1766116413119,0.88923706,840.27,839.22,13.20939813]
[1766116413318,9.84658057,840.27,839.22,13.20939813]
[1766116413919,8.95734351,840.27,839.22,13.20939813]
[1766116420529,8.95734351,840.27,839.22,14.08166978]
[1766116421233,8.95734351,840.27,839.34,0.87227165]
[1766116421433,8.95734351,840.27,839.35,0.87227165]
[1766116421731,8.95734351,840.27,839.22,13.20939813]
[1766116421732,8.95734351,840.27,839.36,0.87227165]
[1766116421932,8.95734351,840.27,839.32,0.87227165]
[1766116422129,8.95734351,840.27,839.22,13.20939813]
[1766116426428,0.88901582,840.19,839.22,13.20939813]
[1766116427433,0.88901582,840.2,839.22,13.20939813]
[1766116429529,0.88901582,840.23,839.22,13.20939813]
[1766116429934,8.95734351,840.27,839.34,0.87227165]
[1766116431436,8.95734351,840.27,839.22,14.08166978]
[1766116431732,0.88901582,840.23,839.22,13.20939813]
[1766116432939,0.88901582,840.22,839.22,13.20939813]
[1766116434238,0.88901582,840.2,839.22,13.20939813]
[1766116435435,0.88901582,840.19,839.22,13.20939813]
[1766116436336,0.88901582,840.18,839.22,13.20939813]
[1766116436537,0.88901582,840.23,839.22,13.20939813]
[1766116436842,9.84635933,840.27,839.22,14.08166978]
[1766116437441,8.95734351,840.27,839.27,0.87227165]
[1766116437839,8.95734351,840.27,839.29,0.87227165]
[1766116438337,8.95734351,840.27,839.3,0.87227165]
[1766116438736,8.95734351,840.27,839.33,0.87227165]
[1766116440744,8.95734351,840.27,839.27,0.87227165]
[1766116441242,8.95734351,840.27,839.22,13.20939813]
[1766116441243,8.95734351,840.27,839.28,0.87227165]
[1766116441542,8.95734351,840.27,839.31,0.87227165]
[1766116442243,8.95734351,840.27,839.28,0.87227165]
[1766116444344,9.84635933,840.27,839.29,0.87227165]
[1766116444643,9.84635933,840.27,839.22,13.20939813]
[1766116444644,9.84635933,840.27,839.28,0.87227165]
[1766116445144,9.84635933,840.27,839.29,0.87227165]
[1766116446346,8.95734351,840.27,839.32,0.87227165]
[1766116448247,9.84635933,840.27,839.3,0.87227165]
[1766116450843,8.95734351,840.27,839.31,0.87227165]
[1766116451248,8.95734351,840.27,839.32,0.87227165]
[1766116453652,8.95734351,840.27,839.22,13.20939813]
[1766116453854,8.95734351,840.27,839.32,0.87310664]
[1766116456656,8.95734351,840.27,839.37,0.87310664]
[1766116456851,8.95734351,840.27,839.38,0.87310664]
[1766116457155,8.95734351,840.27,839.37,0.87310664]
[1766116457357,8.95734351,840.27,839.38,0.87310664]
[1766116458156,8.95734351,840.27,839.37,0.87310664]
[1766116458358,8.95734351,840.27,839.45,0.87310664]
[1766116458958,8.95734351,840.27,839.44,0.87310664]
[1766116461261,8.95734351,840.27,839.43,0.87310664]
[1766116462062,8.95734351,840.27,839.22,13.20939813]
[1766116462063,8.95734351,840.27,839.36,0.87310664]
[1766116462359,8.95734351,840.27,839.29,0.87310664]
[1766116462562,8.95734351,840.27,839.22,13.20939813]
[1766116462563,9.84882002,840.27,839.28,0.87310664]
[1766116464566,0.89147651,840.24,839.24,0.87310664]
[1766116464766,0.89147651,840.2,839.22,13.20939813]
[1766116465070,0.89147651,840.05,839.22,13.20939813]
[1766116466174,0.89147651,840.06,839.22,13.20939813]
[1766116466372,0.89147651,840.05,839.22,13.20939813]
[1766116467170,0.89147651,840.06,839.22,13.20939813]
[1766116467975,1.18808242,840.05,839.22,13.20939813]
[1766116468176,0.89147651,839.96,839.22,13.20939813]
[1766116469176,0.89147651,839.98,839.22,13.20939813]
[1766116469373,1.18038957,840.13,839.22,13.20939813]
[1766116469578,0.89057695,839.98,839.22,13.20939813]
[1766116470077,0.89057695,839.99,839.22,13.20939813]
[1766116471182,0.89057695,840.0,838.86,0.87215408]
[1766116471382,0.89057695,839.95,838.81,0.87215408]
[1766116471579,0.89057695,839.91,838.77,0.87215408]
[1766116472178,0.89057695,839.93,838.76,0.87215408]
[1766116473180,0.89057695,839.86,838.66,0.87215408]
[1766116474180,0.89057695,839.88,838.65,0.87215408]
[1766116474480,0.89057695,839.95,838.71,0.87215408]
[1766116475185,0.89057695,839.96,838.7,0.87215408]
[1766116475688,0.89057695,840.0,838.74,0.87215408]
[1766116475988,0.89057695,840.11,838.85,0.87215408]
[1766116476182,0.89057695,840.14,838.87,0.87215408]
[1766116476486,0.89057695,840.22,838.95,0.87215408]
[1766116477385,0.89057695,840.25,838.98,0.87215408]
[1766116478488,0.89057695,840.25,838.97,0.87215408]
[1766116480093,0.89057695,840.19,838.92,0.87215408]
[1766116480289,0.89057695,840.2,838.92,0.87215408]
[1766116480589,0.89057695,840.19,838.92,0.87215408]
[1766116480794,0.89057695,840.2,838.92,0.87215408]
[1766116481295,0.89057695,840.25,838.98,0.87215408]
[1766116485093,0.89057695,840.25,838.83,1.1498495]
[1766116485094,8.95734351,840.27,838.83,1.1498495]
[1766116485298,0.88863545,840.25,838.98,0.86808484]
[1766116490196,0.88863545,840.24,838.98,0.86808484]
[1766116490695,0.2072545,839.93,838.98,0.86808484]
[1766116491799,0.2072545,839.93,838.92,0.86808484]
[1766116492097,0.2072545,839.93,838.85,0.86808484]
[1766116493406,0.2072545,839.93,838.84,0.86808484]
[1766116494205,0.2072545,839.93,838.69,1.1498495]
[1766116494206,0.2072545,839.93,838.81,0.86808484]
[1766116494704,0.2072545,839.93,838.79,0.86808484]
[1766116494905,0.2072545,839.93,838.78,0.86808484]
[1766116495102,0.2072545,839.93,838.73,0.86808484]
[1766116495605,0.88863545,839.92,838.64,0.86808484]
[1766116495806,0.88863545,839.81,838.53,0.86808484]
[1766116496305,0.88863545,839.83,838.51,0.86808484]
[1766116497103,0.88863545,839.76,838.41,0.86808484]
[1766116497508,0.88863545,839.66,838.31,0.86808484]
[1766116498109,0.88863545,839.69,838.29,0.86808484]
[1766116499108,0.88863545,839.71,838.27,0.86808484]
[1766116499808,1.18038957,839.86,837.98,20.7802656]
[1766116499809,0.88863545,839.7,838.26,0.86808484]
[1766116501414,0.88863545,839.72,838.24,0.86808484]
[1766116501614,0.88863545,839.65,838.17,0.86808484]
[1766116502314,0.88863545,839.66,838.14,0.86808484]
[1766116502714,0.88863545,839.63,838.11,0.86808484]
[1766116502911,0.88863545,839.64,838.11,0.86808484]
[1766116503115,0.88863545,839.59,838.01,0.86808484]
[1766116503411,0.88863545,839.66,838.09,0.86808484]
[1766116504218,1.18038957,839.81,838.0,0.20742003]
[1766116504219,0.88863545,839.68,838.06,0.86808484]
[1766116505316,0.88863545,839.69,838.05,0.86808484]
[1766116506114,0.88863545,839.7,838.02,0.86808484]
[1766116507116,0.2072545,839.93,837.98,20.7802656]
[1766116507117,0.88863545,839.67,837.98,20.7802656]
[1766116507519,0.88863545,839.56,837.98,20.7802656]
[1766116508220,0.88863545,839.58,837.98,20.7802656]
[1766116509217,0.88863545,839.6,837.98,20.7802656]
[1766116510117,0.88863545,839.61,837.79,0.86808484]
[1766116510821,0.88863545,839.67,837.86,0.86808484]
[1766116511215,0.88863545,839.68,837.84,0.86808484]
[1766116511618,0.88863545,839.68,837.85,0.86808484]
[1766116511818,0.88863545,839.69,837.85,0.86808484]